bitfinex/quotes_SOLUSD_20240530
["timestamp","ask_amount","ask_price","bid_price","bid_amount"]
[1717055155794,2.38277339,166.07,165.99,6.1412]
[1717055156088,7.03,166.02,165.99,6.1412]
[1717055156685,7.03,166.04,166.01,6.1412]
[1717055156879,92.00075765,166.13,166.01,6.1412]
[1717055157083,7.03,166.05,166.02,6.1412]
[1717055157454,5.62601565,166.12,166.02,6.1412]
[1717055157654,7.03,166.05,166.02,6.1412]
[1717055157879,7.03,166.05,166.03,6.0814]
[1717055158655,0.7819217,166.12,166.03,6.0814]
[1717055158881,7.03,166.05,166.03,6.0814]
[1717055159077,0.7819217,166.12,166.03,6.0814]
[1717055159283,7.03,166.05,166.03,6.0814]
[1717055159693,0.7819217,166.12,166.03,8.4146]
[1717055159863,7.03,166.06,166.03,8.4146]
[1717055160054,0.7819217,166.12,166.03,6.1861]
[1717055160256,0.7819217,166.12,166.04,1.20468104]
[1717055160457,7.03,166.06,166.04,389.90468104]
[1717055160684,7.03,166.06,166.04,388.7]
[1717055160901,0.7819217,166.12,166.04,388.7]
[1717055161065,7.03,166.06,166.04,394.8861]
[1717055161260,7.03,166.07,166.05,21.5385]
[1717055161453,0.7819217,166.12,166.06,6.3402]
[1717055161665,7.03,166.07,166.06,6.3402]
[1717055162072,0.7819217,166.12,166.06,6.3402]
[1717055162254,7.03,166.07,166.06,6.3402]
[1717055164259,7.03,166.09,166.06,395.0402]
[1717055164594,0.7819217,166.12,166.06,395.0402]
[1717055164781,7.03,166.09,166.06,395.0402]
[1717055164958,0.7819217,166.12,166.06,395.0402]
[1717055165159,7.03,166.09,166.06,395.0402]
[1717055165761,0.7819217,166.12,166.06,395.0402]
[1717055165970,7.03,166.09,166.06,395.0402]
[1717055166793,0.7819217,166.12,166.09,6.5899]
[1717055166963,7.8119217,166.12,166.09,6.5899]
[1717055167163,7.8119217,166.12,166.08,116.4678]
[1717055167363,0.7819217,166.12,166.1,6.4656]
[1717055169463,0.7819217,166.12,166.08,122.5048]
[1717055169464,0.7819217,166.12,166.11,135.7845]
[1717055169812,0.7819217,166.12,166.11,524.4845]
[1717055170370,7.03,166.16,166.14,6.4528]
[1717055170599,7.03,166.15,166.13,60.0]
[1717055170897,7.03,166.14,166.13,60.0]
[1717055171662,79.94059984,166.24,166.13,60.0]
[1717055171868,7.03,166.14,166.13,447.9180783]
[1717055172174,81.75163839,166.24,166.13,447.9180783]
[1717055172382,86.49170347,166.24,166.13,387.9180783]
[1717055172576,7.03,166.15,166.13,387.9180783]
[1717055172774,7.03,166.14,166.13,387.9180783]
[1717055173189,86.49170347,166.24,166.13,387.9180783]
[1717055173190,58.37170347,166.24,166.13,447.9180783]
[1717055173495,7.03,166.17,166.14,6.6361]
[1717055173696,7.03,166.17,166.14,394.5541783]
[1717055173992,29.93103855,166.24,166.14,394.5541783]
[1717055174202,7.03,166.16,166.14,394.5541783]
[1717055174399,7.03,166.16,166.14,454.5541783]
[1717055174565,7.03,166.16,166.14,394.5541783]
[1717055175991,7.03,166.16,166.14,454.5541783]
[1717055176396,29.93103855,166.24,166.14,454.5541783]
[1717055176582,7.03,166.16,166.14,454.5541783]
[1717055177809,29.93103855,166.24,166.14,454.5541783]
[1717055178096,7.03,166.16,166.14,456.5070783]
[1717055178304,29.93103855,166.24,166.14,456.5070783]
[1717055178305,7.03,166.17,166.14,456.5070783]
[1717055178601,7.03,166.17,166.14,510.7470783]
[1717055178787,7.03,166.17,166.14,508.5200783]
[1717055179276,7.03,166.17,166.14,510.7470783]
[1717055179901,29.93103855,166.24,166.17,60.0]
[1717055180218,7.03,166.18,166.17,447.9180783]
[1717055180590,6.6013,166.25,166.17,447.9180783]
[1717055180931,7.03,166.18,166.17,447.9180783]
[1717055182389,28.12,166.24,166.17,447.9180783]
[1717055182597,7.03,166.19,166.17,447.9180783]
[1717055182798,7.03,166.18,166.17,447.9180783]
[1717055183315,28.12,166.24,166.17,447.9180783]
[1717055183613,7.03,166.19,166.17,447.9180783]
[1717055184210,28.12,166.24,166.17,447.9180783]
[1717055184393,7.03,166.19,166.17,447.9180783]
[1717055184722,6.6013,166.25,166.17,447.9180783]
[1717055184897,7.03,166.19,166.17,447.9180783]
[1717055185711,4.77550695,166.27,166.17,447.9180783]
[1717055185893,7.03,166.21,166.17,454.5331783]
[1717055186095,72.43867424,166.3,166.17,454.5331783]
[1717055186302,72.43867424,166.3,166.18,2.2264]
[1717055186510,72.43867424,166.3,166.17,454.5331783]
[1717055186511,7.03,166.21,166.17,456.7597783]
[1717055186717,7.03,166.2,166.17,454.5331783]
[1717055187228,72.43867424,166.3,166.17,454.5331783]
[1717055187398,77.25928294,166.3,166.17,508.7731783]
[1717055187725,7.03,166.21,166.19,60.0]
[1717055188213,77.25928294,166.3,166.19,60.0]
[1717055188593,72.43867424,166.3,166.19,60.0]
[1717055188790,7.03,166.21,166.19,60.0]
[1717055188992,10.99334298,166.3,166.21,60.0]
[1717055189190,7.03,166.22,166.21,60.0]
[1717055189519,10.99334298,166.3,166.21,60.0]
[1717055189693,4.93404298,166.3,166.22,21.3621]
[1717055189895,7.03,166.25,166.22,21.3621]
[1717055190294,28.12,166.32,166.23,84.1894]
[1717055190497,28.12,166.32,166.24,6.3711]
[1717055190724,7.03,166.27,166.24,394.2891783]
[1717055190902,7.03,166.27,166.24,395.49569449]
[1717055191406,28.12,166.32,166.25,60.0]
[1717055191605,28.12,166.32,166.24,394.2891783]
[1717055192002,7.03,166.26,166.25,60.0]
[1717055192208,7.03,166.26,166.24,394.2891783]
[1717055192705,7.03,166.27,166.24,394.2891783]
[1717055193115,7.03,166.26,166.24,394.2891783]
[1717055193931,28.12,166.32,166.24,394.2891783]
[1717055194119,7.03,166.26,166.24,394.2891783]
[1717055194311,28.12,166.32,166.24,394.2891783]
[1717055194511,7.03,166.26,166.24,394.2891783]
[1717055195020,10.8403944,166.36,166.24,394.2891783]
[1717055195223,7.03,166.26,166.25,66.2386]
[1717055195517,7.03,166.27,166.25,66.2386]
[1717055195830,7.03,166.26,166.25,137.0541]
[1717055196009,7.03,166.27,166.26,102.3241]
[1717055196423,8.158029,166.28,166.26,490.2421783]
[1717055196620,8.158029,166.28,166.27,60.0]
[1717055197005,1.128029,166.28,166.27,447.9180783]
[1717055197519,8.158029,166.28,166.27,447.9180783]
[1717055198034,1.128029,166.28,166.27,469.4899783]
[1717055198408,1.128029,166.28,166.27,505.6499783]
[1717055198620,1.128029,166.28,166.27,507.8751783]
[1717055198929,1.128029,166.28,166.27,492.8256783]
[1717055199105,1.128029,166.28,166.27,387.9180783]
[1717055199306,8.158029,166.28,166.27,387.9180783]
[1717055200218,1.128029,166.28,166.27,387.9180783]
[1717055200529,8.158029,166.28,166.27,387.9180783]
[1717055201407,14.695229,166.28,166.27,387.9180783]
[1717055202037,21.725229,166.28,166.2,387.9180783]
[1717055202232,7.03,166.21,166.2,387.9180783]
[1717055203304,7.665229,166.28,166.2,387.9180783]
[1717055203537,7.03,166.22,166.2,387.9180783]
[1717055203910,7.665229,166.28,166.2,387.9180783]
[1717055204215,1.128029,166.28,166.2,447.9180783]
[1717055204431,7.03,166.22,166.2,447.9180783]
[1717055206634,1.128029,166.28,166.21,2.226]
[1717055206842,7.03,166.23,166.2,447.9180783]
[1717055207213,7.03,166.22,166.2,387.9180783]
[1717055208129,7.03,166.21,166.2,387.9180783]
[1717055208320,7.03,166.22,166.2,387.9180783]
[1717055208759,7.03,166.23,166.2,387.9180783]
[1717055209620,7.03,166.22,166.2,387.9180783]
[1717055212553,7.03,166.22,166.2,390.1442783]
[1717055214033,7.03,166.22,166.2,387.9180783]
[1717055214441,7.03,166.22,166.2,447.9180783]
[1717055214647,7.03,166.22,166.2,450.1442783]
[1717055214946,1.128029,166.28,166.2,450.1442783]
[1717055215143,7.03,166.22,166.2,450.1442783]
[1717055215325,7.03,166.23,166.2,450.1442783]
[1717055216639,1.128029,166.28,166.22,60.0]
[1717055216838,7.03,166.25,166.22,60.0]
[1717055217245,1.128029,166.28,166.22,62.2259]
[1717055217551,7.03,166.25,166.22,62.2259]
[1717055218037,7.03,166.23,166.22,60.0]
[1717055218229,7.03,166.24,166.22,60.0]
[1717055218847,7.03,166.26,166.22,60.0]
[1717055219026,7.03,166.25,166.22,60.0]
[1717055219223,7.03,166.24,166.22,60.0]
[1717055219831,7.03,166.24,166.22,447.9180783]
[1717055220031,1.128029,166.28,166.22,447.9180783]
[1717055220243,7.03,166.25,166.22,447.9180783]
[1717055227642,7.03,166.26,166.22,447.9180783]
[1717055228456,1.128029,166.28,166.22,447.9180783]
[1717055228632,7.03,166.26,166.22,447.9180783]
[1717055233855,7.03,166.26,166.22,502.1580783]
[1717055234056,7.03,166.26,166.22,486.3039783]
[1717055234247,7.03,166.27,166.22,486.3039783]
[1717055234448,7.03,166.27,166.22,492.7054783]
[1717055235558,7.03,166.27,166.22,490.4795783]
[1717055235762,1.128029,166.28,166.22,490.4795783]
[1717055235763,7.03,166.26,166.22,490.4795783]
[1717055237971,7.03,166.26,166.22,484.0780783]
[1717055238474,7.03,166.26,166.23,22.985]
[1717055238650,7.03,166.27,166.23,22.985]
[1717055238850,7.03,166.27,166.23,6.5256]
[1717055240051,1.128029,166.28,166.23,6.5256]
[1717055240557,7.03,166.27,166.23,7.12837457]
[1717055241078,7.03,166.27,166.23,6.5256]
[1717055241977,7.03,166.27,166.22,484.0780783]
[1717055242160,7.03,166.27,166.22,490.5124783]
[1717055242759,7.03,166.27,166.23,0.55374205]
[1717055243280,7.03,166.27,166.23,388.47182035]
[1717055244082,7.03,166.27,166.23,387.9180783]
[1717055245885,1.128029,166.28,166.23,387.9180783]
[1717055246098,7.03,166.26,166.23,387.9180783]
[1717055246464,7.03,166.26,166.23,390.1437783]
[1717055247188,7.03,166.27,166.23,390.1437783]
[1717055247402,7.03,166.27,166.24,1.80305526]
[1717055249091,7.03,166.27,166.24,389.72113356]
[1717055249584,1.128029,166.28,166.24,389.72113356]
[1717055249791,1.128029,166.28,166.24,387.9180783]
[1717055250001,7.03,166.26,166.24,387.9180783]
[1717055251082,7.03,166.27,166.24,387.9180783]
[1717055252008,1.128029,166.28,166.24,396.6813783]
[1717055252187,8.158029,166.28,166.24,396.6813783]
[1717055252389,8.158029,166.28,166.24,390.1436783]
[1717055253008,8.158029,166.28,166.25,2.2255]
[1717055253402,8.158029,166.28,166.24,390.1436783]
[1717055253798,7.03,166.27,166.24,390.1436783]
[1717055255013,7.03,166.27,166.24,387.9180783]
[1717055255399,1.128029,166.28,166.27,60.0]
[1717055255601,1.128029,166.28,166.27,447.9180783]
[1717055256415,1.128029,166.28,166.27,450.1432783]
[1717055257112,1.128029,166.28,166.27,456.6237783]
[1717055257616,1.128029,166.28,166.27,510.8637783]
[1717055257991,1.128029,166.28,166.27,492.7837783]
[1717055258191,1.128029,166.28,166.27,510.8637783]
[1717055258622,1.128029,166.28,166.27,492.7837783]
[1717055259909,1.128029,166.28,166.27,527.0287783]
[1717055260123,1.128029,166.28,166.27,510.8637783]
[1717055263019,1.128029,166.28,166.27,525.9773783]
[1717055263324,1.128029,166.28,166.27,530.4278783]
[1717055265332,1.128029,166.28,166.27,537.4578783]
[1717055265918,1.128029,166.28,166.27,530.4278783]
[1717055266222,1.128029,166.28,166.27,537.4578783]
[1717055266521,1.128029,166.28,166.27,530.4278783]
[1717055266726,7.03,166.32,166.31,60.0]
[1717055267242,7.03,166.32,166.29,386.7900493]
[1717055267403,7.03,166.31,166.29,386.7900493]
[1717055268509,32.85979774,166.4,166.29,386.7900493]
[1717055268708,7.03,166.31,166.29,386.7900493]
[1717055270233,7.03,166.31,166.29,389.0150493]
[1717055272530,7.03,166.32,166.3,60.0]
[1717055273125,7.03,166.32,166.3,62.2248]
[1717055273305,32.85979774,166.4,166.3,2.2248]
[1717055273607,7.03,166.33,166.31,2.2246]
[1717055273810,7.03,166.33,166.31,386.7900493]
[1717055274830,7.03,166.33,166.31,389.0147493]
[1717055275823,7.03,166.33,166.32,2.2246]
[1717055276125,7.03,166.34,166.32,2.2246]
[1717055277138,7.03,166.34,166.32,62.2246]
[1717055277354,7.03,166.34,166.32,60.0]
[1717055277527,7.03,166.34,166.32,62.2245]
[1717055277931,28.15752584,166.4,166.32,62.2245]
[1717055278240,7.03,166.34,166.32,389.0145493]
[1717055280640,0.03752584,166.4,166.32,389.0145493]
[1717055280839,7.03,166.34,166.32,389.0145493]
[1717055282741,7.03,166.34,166.32,449.0145493]
[1717055283739,28.15752584,166.4,166.32,449.0145493]
[1717055283945,7.03,166.34,166.32,449.0145493]
[1717055284148,7.03,166.35,166.32,449.0145493]
[1717055285636,0.03752584,166.4,166.33,2.2244]
[1717055285941,7.03,166.35,166.33,2.2244]
[1717055286350,7.03,166.35,166.32,449.0145493]
[1717055288947,7.03,166.34,166.32,449.0145493]
[1717055289624,28.15752584,166.4,166.32,449.0145493]
[1717055289825,7.03,166.34,166.32,449.0145493]
[1717055295360,2.224,166.37,166.32,449.0145493]
[1717055295538,7.03,166.34,166.32,449.0145493]
[1717055295854,2.2238,166.38,166.32,449.0145493]
[1717055296034,7.03,166.35,166.32,449.0145493]
[1717055297451,7.03,166.35,166.33,2.2244]
[1717055298942,2.2238,166.38,166.33,389.0144493]
[1717055299144,7.03,166.35,166.33,389.0144493]
[1717055299440,7.03,166.35,166.33,386.7900493]
[1717055299640,7.03,166.34,166.33,386.7900493]
[1717055306264,7.03,166.34,166.33,389.0144493]
[1717055306556,7.03,166.35,166.33,386.7900493]
[1717055307973,7.03,166.34,166.33,386.7900493]
[1717055310143,7.03,166.36,166.33,386.7900493]
[1717055316575,9.254,166.36,166.32,386.7900493]
[1717055316881,7.03,166.36,166.32,386.7900493]
[1717055317378,9.2541,166.36,166.32,386.7900493]
[1717055317580,7.03,166.36,166.32,386.7900493]
[1717055318370,7.03,166.35,166.32,386.7900493]
[1717055319571,2.224,166.37,166.32,386.7900493]
[1717055319769,7.03,166.34,166.32,386.7900493]
[1717055321571,2.224,166.37,166.32,389.0146493]
[1717055321770,7.03,166.35,166.32,389.0146493]
[1717055322374,7.03,166.35,166.32,386.5146493]
[1717055322671,2.224,166.37,166.32,386.5146493]
[1717055322872,7.03,166.35,166.32,386.5146493]
[1717055325084,2.224,166.37,166.32,386.5146493]
[1717055325284,7.03,166.35,166.32,386.5146493]
[1717055328475,7.03,166.36,166.32,386.5146493]
[1717055330169,7.03,166.34,166.32,386.5146493]
[1717055332180,7.03,166.34,166.32,384.2900493]
[1717055334094,7.03,166.34,166.31,2.2247]
[1717055334394,7.03,166.34,166.32,2.2246]
[1717055335790,7.03,166.34,166.31,2.2247]
[1717055335997,7.03,166.32,166.29,2.2249]
[1717055336178,7.03,166.32,166.29,386.5149493]
[1717055336497,7.03,166.32,166.3,2.2248]
[1717055336886,7.03,166.32,166.29,384.2900493]
[1717055337089,7.03,166.32,166.29,386.5150493]
[1717055337279,7.03,166.32,166.29,384.2900493]
[1717055337881,7.03,166.3,166.29,384.2900493]
[1717055340089,6.102,166.35,166.25,386.5155493]
[1717055340395,7.91303855,166.35,166.25,386.5155493]
[1717055340600,7.03,166.29,166.25,384.2900493]
[1717055342185,7.03,166.28,166.25,384.2900493]
[1717055345910,7.03,166.27,166.24,384.2900493]
[1717055346494,7.03,166.28,166.24,384.2900493]
[1717055351079,9.2552,166.28,166.24,384.2900493]
[1717055351294,7.03,166.27,166.24,384.2900493]
[1717055351493,28.12,166.32,166.24,384.2900493]
[1717055351694,12.84228421,166.35,166.24,390.3233493]
[1717055351894,7.03,166.28,166.24,384.2900493]
[1717055352294,7.03,166.28,166.24,386.5156493]
[1717055352811,7.03,166.27,166.24,386.5156493]
[1717055353798,7.03,166.28,166.24,386.5156493]
[1717055359114,2.225,166.3,166.24,386.5156493]
[1717055359408,7.03,166.27,166.24,384.2900493]
[1717055360207,7.03,166.27,166.24,386.5156493]
[1717055360399,7.03,166.27,166.24,384.2900493]
[1717055363405,7.03,166.27,166.23,2.2257]
[1717055363931,7.03,166.26,166.22,2.2259]
[1717055364110,7.03,166.26,166.22,386.5159493]
[1717055365818,7.03,166.26,166.23,2.2258]
[1717055366120,28.12,166.32,166.2,384.2900493]
[1717055366121,7.03,166.25,166.2,384.2900493]
[1717055366326,7.03,166.24,166.2,384.2900493]
[1717055367412,7.03,166.24,166.21,2.226]
[1717055367614,7.03,166.24,166.2,386.5161493]
[1717055368932,7.03,166.23,166.2,384.2900493]
[1717055369309,7.03,166.23,166.19,386.5163493]
[1717055374413,7.03,166.23,166.19,384.2900493]
[1717055375047,2.2256,166.25,166.19,384.2900493]
[1717055375345,7.03,166.23,166.19,384.2900493]
[1717055375922,7.03,166.23,166.2,42.3204]
[1717055376124,9.2553,166.27,166.21,9.256]
[1717055376350,7.03,166.26,166.21,2.226]
[1717055377054,2.2252,166.28,166.21,2.226]
[1717055377228,2.2253,166.27,166.21,2.226]
[1717055377429,7.03,166.26,166.21,2.226]
[1717055378033,9.2554,166.26,166.2,9.2561]
[1717055378427,2.2254,166.26,166.2,9.2561]
[1717055378789,9.2554,166.26,166.2,9.2561]
[1717055378923,9.2554,166.26,166.19,386.5163493]
[1717055379129,2.2255,166.25,166.2,7.03]
[1717055379652,9.2554,166.26,166.2,9.2562]
[1717055380252,9.2554,166.26,166.2,2.2262]
[1717055380458,9.2554,166.26,166.19,2.2263]
[1717055380958,9.2554,166.26,166.19,390.9263]
[1717055381547,9.2556,166.25,166.19,388.7]
[1717055381745,9.2556,166.25,166.19,397.9563]
[1717055382250,9.2556,166.25,166.19,395.73]
[1717055382762,2.2256,166.25,166.19,395.73]
[1717055383251,2.2256,166.25,166.19,397.9563]
[1717055384338,2.2256,166.25,166.19,395.73]
[1717055385349,2.2256,166.25,166.19,397.9563]
[1717055385743,9.2556,166.25,166.19,397.9563]
[1717055386277,9.2556,166.25,166.19,395.73]
[1717055387255,9.2556,166.25,166.19,397.9563]
[1717055387946,2.2256,166.25,166.19,397.9563]
[1717055388958,2.2256,166.25,166.19,390.9263]
[1717055389157,9.2556,166.25,166.19,397.9563]
[1717055389457,7.03,166.24,166.19,390.9263]
[1717055390050,7.03,166.24,166.19,388.7]
[1717055390447,9.2557,166.24,166.19,388.7]
[1717055391567,7.03,166.24,166.19,388.7]
[1717055392486,2.2256,166.25,166.19,388.7]
[1717055392646,7.03,166.24,166.19,388.7]
[1717055393051,9.2556,166.25,166.2,45.0]
[1717055397372,15.7101,166.25,166.2,45.0]
[1717055397754,8.6801,166.25,166.2,45.0]
[1717055397955,15.7101,166.25,166.2,45.0]
[1717055398471,8.6801,166.25,166.2,45.0]
[1717055398766,15.7101,166.25,166.2,45.0]
[1717055399752,7.03,166.24,166.2,45.0]
[1717055402152,1.81103855,166.34,166.22,7.03]
[1717055402465,7.03,166.28,166.23,47.2257]
[1717055402865,7.03,166.28,166.24,2.2256]
[1717055403059,7.03,166.28,166.25,2.2255]
[1717055403261,7.03,166.29,166.24,2.2256]
[1717055403657,7.03,166.27,166.23,45.0]
[1717055403863,7.03,166.27,166.22,47.2259]
[1717055404558,7.03,166.27,166.23,2.2257]
[1717055404758,7.03,166.27,166.23,47.2257]
[1717055405164,7.03,166.27,166.23,2.2257]
[1717055405559,6.5902,166.27,166.22,47.2258]
[1717055405786,7.03,166.25,166.22,47.2258]
[1717055406078,7.03,166.25,166.21,2.226]
[1717055407258,7.03,166.25,166.19,20.0]
[1717055407259,6.5902,166.27,166.22,2.2259]
[1717055407467,7.03,166.26,166.22,2.2259]
[1717055407884,7.03,166.26,166.22,388.7]
[1717055412391,7.03,166.25,166.22,388.7]
[1717055413178,7.03,166.25,166.21,2.226]
[1717055414586,7.03,166.25,166.2,435.9261]
[1717055414787,13.0412,166.26,166.2,435.9261]
[1717055415483,7.03,166.25,166.2,435.9261]
[1717055416894,6.0112,166.26,166.2,435.9261]
[1717055417090,7.03,166.25,166.2,435.9261]
[1717055418177,7.03,166.24,166.2,435.9261]
[1717055418590,6.2528,166.24,166.21,2.226]
[1717055418895,7.03,166.22,166.2,433.7]
[1717055419069,7.03,166.22,166.2,45.0]
[1717055419399,7.03,166.22,166.19,47.2262]
[1717055419706,7.03,166.23,166.19,47.2262]
[1717055420467,6.2528,166.24,166.19,47.2262]
[1717055420709,7.03,166.23,166.19,47.2262]
[1717055421266,6.2528,166.24,166.19,47.2262]
[1717055421496,7.03,166.23,166.19,47.2262]
[1717055421668,7.03,166.22,166.19,47.2262]
[1717055421882,7.03,166.23,166.19,45.0]
[1717055422276,13.0352,166.23,166.19,45.0]
[1717055422568,6.0052,166.23,166.19,45.0]
[1717055422773,13.0352,166.23,166.19,45.0]
[1717055422974,13.0352,166.23,166.19,47.2263]
[1717055423194,2.2256,166.25,166.19,47.2263]
[1717055423369,7.03,166.23,166.19,47.2263]
[1717055423817,2.2256,166.25,166.19,47.2263]
[1717055424011,7.03,166.23,166.19,47.2263]
[1717055424874,7.03,166.23,166.19,435.9263]
[1717055425710,7.03,166.23,166.19,433.7]
[1717055427183,6.4121,166.27,166.19,435.9263]
[1717055427383,7.03,166.23,166.19,435.9263]
[1717055427681,7.03,166.23,166.19,433.7]
[1717055427906,7.03,166.22,166.19,433.7]
[1717055428800,6.4121,166.27,166.19,433.7]
[1717055429106,7.03,166.22,166.19,435.9263]
[1717055429399,7.03,166.22,166.19,388.7]
[1717055429791,6.4121,166.27,166.19,388.7]
[1717055430089,7.03,166.22,166.19,388.7]
[1717055430707,6.4121,166.27,166.19,388.7]
[1717055431004,7.03,166.22,166.18,2.2264]
[1717055431502,7.03,166.21,166.18,2.2264]
[1717055432003,1.81467575,166.26,166.19,2.2263]
[1717055432307,1.81467575,166.26,166.18,2.2264]
[1717055432308,7.03,166.22,166.18,2.2264]
[1717055433103,7.03,166.22,166.19,2.2263]
[1717055433295,7.03,166.22,166.18,2.2264]
[1717055433499,7.03,166.22,166.17,45.0]
[1717055433881,7.03,166.22,166.16,45.0]
[1717055434087,7.03,166.22,166.16,433.7]
[1717055434314,7.03,166.21,166.16,433.7]
[1717055434509,7.03,166.21,166.18,2.2264]
[1717055434804,7.03,166.21,166.17,2.2265]
[1717055436410,1.81467575,166.26,166.16,433.7]
[1717055436411,17.47097575,166.26,166.16,433.7]
[1717055436618,7.03,166.18,166.16,435.9267]
[1717055436832,7.03,166.24,166.16,435.9267]
[1717055437045,7.03,166.19,166.16,435.9267]
[1717055437728,2.2259,166.23,166.16,435.9267]
[1717055438048,7.03,166.19,166.16,435.9267]
[1717055438507,2.2259,166.23,166.16,435.9267]
[1717055439035,7.03,166.19,166.16,435.9267]
[1717055439633,7.03,166.19,166.16,47.2267]
[1717055439820,7.03,166.19,166.16,45.0]
[1717055440441,2.226,166.22,166.16,45.0]
[1717055440739,7.03,166.18,166.16,45.0]
[1717055441122,2.226,166.22,166.16,45.0]
[1717055441338,7.03,166.18,166.16,45.0]
[1717055442547,7.03,166.18,166.14,2.2269]
[1717055442843,7.03,166.17,166.15,2.2268]
[1717055443133,7.03,166.17,166.15,47.2268]
[1717055443314,7.03,166.18,166.15,45.0]
[1717055443621,7.03,166.18,166.14,47.227]
[1717055447515,7.03,166.16,166.14,47.227]
[1717055447720,7.03,166.16,166.14,45.0]
[1717055447914,7.03,166.16,166.13,390.9271]
[1717055448115,7.03,166.15,166.13,390.9271]
[1717055448328,7.03,166.15,166.13,2.2271]
[1717055449238,7.03,166.15,166.12,47.2272]
[1717055449419,7.03,166.14,166.12,47.2272]
[1717055449620,7.03,166.14,166.13,2.2271]
[1717055449826,18.2945,166.21,166.12,45.0]
[1717055450024,7.03,166.14,166.12,2.2273]
[1717055450235,2.2262,166.2,166.13,2.2271]
[1717055450642,7.03,166.14,166.12,2.2272]
[1717055450843,7.03,166.14,166.13,2.2271]
[1717055451158,7.03,166.14,166.11,45.0]
[1717055451357,7.03,166.14,166.12,20.0]
[1717055451652,7.03,166.13,166.12,2.2273]
[1717055452368,7.03,166.13,166.11,2.2273]
[1717055452662,7.03,166.12,166.11,2.2273]
[1717055453024,7.03,166.12,166.09,390.9275]
[1717055453225,7.03,166.16,166.1,2.2274]
[1717055453519,7.03,166.11,166.09,388.7]
[1717055453743,7.03,166.1,166.09,388.7]
[1717055453949,7.03,166.11,166.09,388.7]
[1717055454242,7.03,166.11,166.09,390.9277]
[1717055454444,7.03,166.1,166.09,388.7]
[1717055456131,13.614,166.1,166.09,388.7]
[1717055456844,31.9295,166.1,166.09,388.7]
[1717055457161,31.9295,166.1,166.01,390.9286]
[1717055457453,7.03,166.04,166.01,388.7]
[1717055457666,7.03,166.03,166.01,388.7]
[1717055457854,7.03,166.03,166.0,2.2287]
[1717055458055,7.03,166.03,166.01,2.2287]
[1717055458243,7.03,166.08,165.97,388.7]
[1717055458445,7.03,166.02,165.98,2.2291]
[1717055458862,7.03,166.0,165.98,2.2291]
[1717055459287,28.12,166.08,165.94,388.7]
[1717055459560,7.03,165.99,165.94,388.7]
[1717055459736,7.03,165.98,165.94,388.7]
[1717055460072,7.03,165.96,165.94,388.7]
[1717055460281,9.2589,166.0,165.88,80.8137]
[1717055460282,7.03,165.95,165.88,388.7]
[1717055460472,7.03,165.94,165.88,388.7]
[1717055460650,7.03,165.94,165.88,395.73]
[1717055460977,7.03,165.93,165.89,2.2303]
[1717055461441,28.12,166.0,165.89,2.2303]
[1717055461643,7.03,165.94,165.89,2.2303]
[1717055461886,7.03,165.94,165.9,2.2302]
[1717055462248,7.03,165.95,165.9,2.2302]
[1717055462950,7.03,165.94,165.89,2.2303]
[1717055463356,7.03,165.92,165.88,388.7]